bitfinex/quotes_SOLUSD_20251030
["timestamp","ask_amount","ask_price","bid_price","bid_amount"]
[1761798303243,5.16031264,192.9,192.82,5.16031264]
[1761798303445,5.18328316,192.93,192.83,5.85031264]
[1761798303645,5.16031264,192.93,192.85,5.16031264]
[1761798303844,120.592,192.96,192.78,0.518726]
[1761798303845,5.16031264,192.97,192.89,5.16031264]
[1761798304153,5.16031264,192.96,192.89,5.16031264]
[1761798304469,100.0,192.98,192.9,5.85031264]
[1761798304675,5.16031264,192.98,192.9,5.85031264]
[1761798304856,5.16031264,192.98,192.91,0.69]
[1761798305272,22.74052503,193.03,192.95,5.16031264]
[1761798305273,50.0,193.02,192.95,5.16031264]
[1761798305568,20.85242082,193.2,192.85,0.66069929]
[1761798305569,100.0,193.05,192.96,0.69]
[1761798305785,100.0,193.01,192.91,5.16031264]
[1761798305946,6.48472589,193.12,192.91,9.93098926]
[1761798306148,55.16031264,193.05,192.92,1.35051114]
[1761798306446,5.16031264,193.05,192.97,5.16031264]
[1761798306651,10.33956366,193.08,193.01,5.16031264]
[1761798306887,55.16031264,193.07,192.93,0.69]
[1761798307043,50.0,193.05,193.0,5.16031264]
[1761798307250,5.17873796,193.1,193.01,5.16031264]
[1761798307454,5.16031264,193.06,192.94,0.69]
[1761798307670,5.16031264,193.06,193.0,5.16031264]
[1761798307975,5.16031264,193.08,193.01,5.16031264]
[1761798308145,5.16031264,193.08,192.92,0.51834957]
[1761798308350,5.16031264,193.0,192.95,0.69]
[1761798308646,30.52298926,193.04,192.95,0.69]
[1761798308647,70.592,193.04,192.97,5.16031264]
[1761798308851,55.16031264,193.02,192.95,0.69]
[1761798309170,5.16031264,193.03,192.96,5.16031264]
[1761798309370,50.0,193.07,192.99,5.16031264]
[1761798309570,50.0,193.06,193.01,5.16031264]
[1761798309776,50.0,193.04,192.91,0.69]
[1761798309979,5.16031264,193.01,192.91,0.69]
[1761798310261,5.16031264,192.99,192.91,0.69]
[1761798310466,5.16031264,192.98,192.92,5.16031264]
[1761798310664,10.3424653,192.97,192.91,5.85031264]
[1761798310972,5.16031264,192.98,192.92,5.16031264]
[1761798311160,5.16031264,192.99,192.93,5.16031264]
[1761798312175,5.16031264,193.02,192.94,0.69]
[1761798312365,55.16031264,192.99,192.94,0.69]
[1761798312556,5.16031264,192.98,192.92,5.16031264]
[1761798312876,5.16031264,192.98,192.92,0.69]
[1761798313167,5.16031264,192.98,192.92,5.85031264]
[1761798313377,50.0,193.01,192.92,5.85031264]
[1761798313549,5.16031264,193.02,192.96,5.16031264]
[1761798313749,100.14216157,193.03,192.93,0.68]
[1761798313960,5.16031264,193.01,192.95,5.16031264]
[1761798314167,5.16031264,193.01,192.93,0.68]
[1761798314168,5.16031264,193.01,192.94,5.16031264]
[1761798314374,55.16031264,193.0,192.94,5.16031264]
[1761798314553,50.0,193.0,192.94,5.16031264]
[1761798314756,60.34171548,193.0,192.94,5.16031264]
[1761798314952,55.16031264,193.0,192.94,5.16031264]
[1761798315189,5.16031264,192.98,192.93,0.68]
[1761798315354,5.16031264,192.97,192.91,5.16031264]
[1761798315856,50.0,192.98,192.91,0.68]
[1761798315857,5.16031264,192.96,192.91,0.68]
[1761798316068,50.0,192.98,192.91,0.68]
[1761798316069,5.16031264,192.97,192.91,5.84031264]
[1761798316255,5.16031264,192.96,192.91,0.68]
[1761798316464,55.16031264,192.96,192.91,0.68]
[1761798316650,10.3424653,192.97,192.91,0.68]
[1761798316852,50.0,192.96,192.91,0.68]
[1761798317056,5.18215266,192.97,192.91,0.68]
[1761798317275,10.3424653,192.97,192.91,0.68]
[1761798317470,5.18215266,192.97,192.91,0.68]
[1761798317670,55.16031264,192.96,192.9,5.16031264]
[1761798317885,5.16031264,192.94,192.88,5.84031264]
[1761798318179,55.16031264,192.97,192.88,0.68]
[1761798318387,50.0,193.0,192.88,0.68]
[1761798318388,5.16031264,192.95,192.89,5.16031264]
[1761798318567,5.18134715,193.0,192.9,0.68]
[1761798318765,0.14216157,193.02,192.9,0.68]
[1761798318766,0.14216157,193.02,192.94,5.16031264]
[1761798318971,0.14216157,193.02,192.9,0.68]
[1761798318972,50.0,193.03,192.9,5.86402344]
[1761798319175,50.0,193.05,192.94,0.1]
[1761798319176,55.18002374,193.05,192.94,0.1]
[1761798319499,5.16031264,193.03,192.95,0.68]
[1761798319654,105.18002374,193.05,192.98,5.16031264]
[1761798319655,5.16031264,193.04,192.98,5.16031264]
[1761798320256,55.16031264,193.02,192.95,5.16031264]
[1761798320470,5.16031264,193.01,192.94,5.94031264]
[1761798320672,5.16031264,192.99,192.94,0.1]
[1761798320883,1.99999999,193.12,192.95,0.68]
[1761798321177,5.66031264,192.98,192.94,0.1]
[1761798321376,5.16031264,192.97,192.94,0.1]
[1761798321582,5.16031264,192.96,192.94,0.1]
[1761798321790,55.16031264,192.95,192.94,0.1]
[1761798322086,55.16031264,192.95,192.86,7.43152801]
[1761798322087,50.0,192.88,192.86,6.75152801]
[1761798322263,5.16031264,192.87,192.86,6.75152801]
[1761798322458,5.30247421,192.87,192.86,6.75152801]
[1761798322884,10.48731373,192.87,192.86,6.75152801]
[1761798323255,5.32700109,192.87,192.86,6.75152801]
[1761798323456,12.48495939,192.87,192.86,6.75152801]
[1761798323765,100.0,192.88,192.86,6.75152801]
[1761798323766,50.0,192.88,192.86,6.75152801]
[1761798323968,50.0,192.91,192.86,6.75152801]
[1761798324157,7.1579583,192.89,192.86,6.75152801]
[1761798324575,20.592,192.92,192.86,7.41152801]
[1761798324779,7.1579583,192.9,192.86,7.41152801]
[1761798325063,50.0,192.97,192.87,0.66]
[1761798325263,0.5,192.98,192.87,0.66]
[1761798325493,0.5,192.98,192.87,0.80216157]
[1761798325797,0.5,192.98,192.9,0.14216157]
[1761798326000,0.5,192.98,192.95,7.1579583]
[1761798326297,7.1579583,193.01,192.95,7.1579583]
[1761798326512,7.1579583,193.01,192.94,7.1579583]
[1761798326678,50.0,192.98,192.91,7.1579583]
[1761798326874,50.0,193.0,192.92,7.1579583]
[1761798327074,50.0,193.05,192.96,7.1579583]
[1761798327407,50.0,193.05,192.98,7.1579583]
[1761798327616,7.1579583,193.06,193.0,7.1579583]
[1761798328109,55.17909657,193.09,193.0,7.1579583]
[1761798328408,7.30011987,193.08,193.01,7.1579583]
[1761798328697,7.1579583,193.08,193.01,7.1579583]
[1761798328918,57.1579583,193.07,192.99,0.71]
[1761798329075,50.0,193.06,192.99,7.8679583]
[1761798329275,57.1579583,193.06,192.99,7.8679583]
[1761798329478,50.0,193.06,193.0,7.1579583]
[1761798329890,50.0,193.06,192.99,0.71]
[1761798330094,50.0,193.06,193.0,7.1579583]
[1761798330414,7.1579583,193.01,192.94,7.1579583]
[1761798330574,7.1579583,193.03,192.96,7.1579583]
[1761798330894,62.33835044,193.04,192.97,7.1579583]
[1761798331101,62.33835044,193.04,192.95,7.1579583]
[1761798331102,50.0,193.02,192.95,7.1579583]
[1761798331273,57.1579583,193.0,192.93,0.71]
[1761798331478,50.0,192.98,192.93,0.71]
[1761798331676,50.14216157,193.01,192.93,0.71]
[1761798331677,7.1579583,192.99,192.93,0.71]
[1761798331884,50.0,192.98,192.93,0.71]
[1761798332076,50.0,192.98,192.92,7.1579583]
[1761798332280,50.0,192.98,192.9,0.71]
[1761798332513,57.1579583,192.96,192.89,7.1579583]
[1761798332715,7.1579583,192.95,192.89,7.1579583]
[1761798333009,50.0,192.96,192.91,7.1579583]
[1761798333218,57.1579583,192.98,192.91,7.1579583]
[1761798333720,57.1579583,192.96,192.9,0.71]
[1761798333899,50.0,192.96,192.9,7.8679583]
[1761798334291,7.1579583,192.97,192.9,7.8679583]
[1761798334486,7.1579583,192.93,192.86,6.75152801]
[1761798334727,100.0,192.93,192.86,6.75152801]
[1761798334889,20.592,192.95,192.9,7.1579583]
[1761798334890,70.592,192.95,192.9,7.1579583]
[1761798335091,70.592,192.95,192.89,7.1579583]
[1761798335092,75.77470148,192.95,192.89,7.1579583]
[1761798335418,50.0,192.93,192.87,0.71]
[1761798335625,95.88938432,192.95,192.88,7.1579583]
[1761798335792,50.0,192.93,192.88,7.1579583]
[1761798335995,77.7499583,192.95,192.88,7.1579583]
[1761798336212,20.592,192.95,192.88,0.71]
[1761798336523,57.1579583,192.95,192.88,7.8679583]
[1761798336892,5.18295843,192.94,192.88,0.71]
[1761798337089,50.0,193.0,192.89,0.71]
[1761798337303,12.33935401,193.0,192.94,7.1579583]
[1761798337531,7.1579583,193.04,192.98,7.1579583]
[1761798337994,57.1579583,193.03,192.96,7.1579583]
[1761798338200,57.1579583,193.01,192.95,7.8679583]
[1761798338394,7.1579583,193.0,192.93,7.1579583]
[1761798338695,57.1579583,192.99,192.92,7.1579583]
[1761798339007,57.1579583,193.01,192.94,7.1579583]
[1761798339181,55.82303678,193.02,192.95,7.8679583]
[1761798339182,57.80011987,193.02,192.95,7.8679583]
[1761798339387,0.5,193.02,192.97,7.1579583]
[1761798339587,7.1579583,193.04,192.91,5.18364562]
[1761798339588,7.1579583,193.04,192.96,0.71]
[1761798339814,55.18003804,193.05,192.96,0.71]
[1761798340005,7.1579583,193.04,192.97,7.1579583]
[1761798340187,50.0,193.07,192.99,7.1579583]
[1761798340389,7.1579583,193.08,193.02,7.1579583]
[1761798340591,105.17902483,193.09,193.02,7.1579583]
[1761798340797,7.1579583,193.06,193.0,0.71]
[1761798340997,57.1579583,193.07,193.01,7.1579583]
[1761798341334,57.1579583,193.07,193.0,0.71]
[1761798341335,7.1579583,193.11,193.05,7.1579583]
[1761798341492,7.1579583,193.12,193.05,7.8679583]
[1761798341893,7.1579583,193.11,193.05,0.71]
[1761798342117,57.1579583,193.1,193.04,7.1579583]
[1761798343025,62.33684671,193.1,193.04,7.1579583]
[1761798343322,57.1579583,193.08,193.02,7.1579583]
[1761798343499,50.0,193.08,193.02,7.1579583]
[1761798343700,57.1579583,193.08,193.02,7.1579583]
[1761798343894,57.1579583,193.08,192.92,7.30011987]
[1761798343895,50.0,193.04,192.97,0.71]
[1761798344122,57.1579583,193.04,192.98,7.1579583]
[1761798344330,50.0,193.08,193.01,7.1579583]
[1761798344331,7.1579583,193.07,193.01,7.1579583]
[1761798344510,57.1579583,193.08,193.01,7.1579583]
[1761798345025,62.33734106,193.08,193.01,7.1579583]
[1761798345207,50.0,193.07,192.99,7.8679583]
[1761798345404,7.1579583,193.06,193.0,7.1579583]
[1761798345601,55.17938276,193.08,193.0,7.1579583]
[1761798345602,7.1579583,193.07,193.0,7.8679583]
[1761798345995,7.1579583,193.06,193.0,7.8679583]
[1761798346197,107.1579583,193.08,193.02,7.1579583]
[1761798346397,107.1579583,193.08,192.97,5.18208977]
[1761798346398,100.0,193.15,193.06,7.1579583]
[1761798346598,7.1579583,193.13,193.06,7.1579583]
[1761798347098,57.1579583,193.17,193.1,7.1579583]
[1761798347298,57.1579583,193.14,193.07,0.71]
[1761798347495,57.1579583,193.11,193.02,0.71]
[1761798347735,57.1579583,193.11,193.04,7.1579583]
[1761798347902,50.0,193.09,193.04,7.1579583]
[1761798348105,50.0,193.09,193.03,7.1579583]
[1761798348317,7.1579583,193.07,193.02,0.71]
[1761798348633,50.0,193.06,193.01,7.1579583]
[1761798349027,0.5,193.08,193.02,7.8679583]
[1761798349230,0.5,193.08,193.04,7.1579583]
[1761798349418,0.5,193.08,193.05,7.1579583]
[1761798349617,0.5,193.08,193.02,0.71]
[1761798349829,0.5,193.08,193.04,7.1579583]
[1761798350343,57.1579583,193.06,192.98,0.71]
[1761798350645,50.0,193.03,192.99,0.71]
[1761798350814,50.0,193.07,193.0,7.1579583]
[1761798351013,5.82136726,193.08,192.99,0.71]
[1761798351240,12.97932556,193.08,193.02,7.1579583]
[1761798351533,57.1579583,193.06,192.99,0.71]
[1761798351829,57.1579583,193.06,193.0,7.1579583]
[1761798352028,50.0,193.06,193.01,7.1579583]
[1761798352420,7.1579583,193.07,193.02,0.71]
[1761798353235,5.18000518,193.05,193.0,7.1579583]
[1761798353623,50.0,193.04,193.0,0.71]
[1761798353815,50.0,193.04,193.0,7.8679583]
[1761798354139,5.17974943,193.06,193.0,7.8679583]
[1761798354308,7.6579583,193.08,193.01,7.1579583]
[1761798354515,50.0,193.07,193.02,7.1579583]
[1761798354730,50.0,193.07,193.01,0.71]
[1761798354937,57.1579583,193.07,193.01,7.8679583]
[1761798355134,5.17973686,193.06,193.01,7.8679583]
[1761798355439,5.17973686,193.06,193.0,7.1579583]
[1761798355440,50.0,193.05,193.0,7.1579583]
[1761798355620,50.0,193.05,192.99,7.1579583]
[1761798355822,7.1579583,193.02,192.89,0.51843019]
[1761798356021,57.1579583,193.01,192.94,0.71]
[1761798356227,57.1579583,192.98,192.92,7.1579583]
[1761798356422,57.1579583,192.98,192.87,0.71]
[1761798356622,70.592,193.03,192.94,7.1579583]
[1761798356623,57.1579583,193.0,192.94,7.1579583]
[1761798357349,57.1579583,193.0,192.94,7.8679583]
[1761798357645,57.1579583,193.0,192.93,7.1579583]
[1761798357646,50.0,192.98,192.93,7.1579583]
[1761798357846,7.1579583,192.95,192.87,0.71]
[1761798358026,50.0,192.97,192.9,7.1579583]
[1761798358224,50.0,192.97,192.89,0.71]
[1761798358429,57.1579583,192.97,192.91,7.1579583]
[1761798358746,57.1579583,192.95,192.89,7.8679583]
[1761798358933,50.0,192.95,192.89,7.8679583]
[1761798359141,7.1579583,192.94,192.86,6.75152801]
[1761798359437,57.1579583,192.95,192.89,7.1579583]
[1761798359752,57.1579583,192.95,192.9,7.1579583]
[1761798359936,50.0,192.97,192.87,0.71]
[1761798359937,57.1579583,192.97,192.91,7.1579583]
[1761798360139,57.1579583,192.97,192.87,0.71]
[1761798360140,50.0,192.99,192.87,0.71]
[1761798360315,7.1579583,193.0,192.94,7.1579583]
[1761798360519,57.1579583,193.01,192.95,7.1579583]
[1761798360742,57.1579583,192.99,192.87,0.71]
[1761798360933,50.0,192.97,192.88,0.71]
[1761798361133,57.1579583,192.99,192.93,7.1579583]
[1761798361445,5.18215266,192.97,192.91,7.1579583]
[1761798361631,57.1579583,192.98,192.92,7.1579583]
[1761798361952,50.0,193.07,192.97,7.1579583]
[1761798362126,50.0,193.1,193.06,7.1579583]
[1761798362325,50.0,193.1,192.98,1.22818841]
[1761798362526,57.1579583,193.14,192.99,1.22816156]
[1761798362729,57.1579583,193.12,192.99,1.22816156]
[1761798362931,57.1579583,193.12,192.96,0.14216157]
[1761798362932,55.17759138,193.14,193.06,7.1579583]
[1761798363136,5.17759138,193.14,193.07,7.1579583]
[1761798363321,7.1579583,193.14,193.08,7.1579583]
[1761798363522,7.1579583,193.14,193.05,0.71]
[1761798363742,50.2,193.18,193.06,20.592]
[1761798363947,50.0,193.17,193.1,7.1579583]
[1761798364156,57.1579583,193.16,193.07,0.71]
[1761798364445,50.0,193.15,193.1,7.1579583]
[1761798364652,55.37654621,193.18,193.13,7.1579583]
[1761798364653,0.2,193.18,193.13,7.1579583]
[1761798364846,50.2,193.18,193.07,0.71]
[1761798365026,50.0,193.14,193.09,7.1579583]
[1761798365229,57.1579583,193.14,193.07,0.71]
[1761798365423,50.0,193.14,193.1,7.1579583]
[1761798365754,50.0,193.14,193.02,0.66024259]
[1761798365755,50.0,193.11,193.04,7.1579583]
[1761798365920,57.1579583,193.07,192.93,0.5183227]
[1761798366123,7.1579583,193.06,193.0,7.1579583]
[1761798366324,57.1579583,193.07,192.99,0.71]
[1761798366540,57.1579583,193.09,193.03,7.1579583]
[1761798366742,7.1579583,193.08,192.99,0.71]
[1761798366953,57.1579583,193.03,192.87,0.51848395]
[1761798367130,7.1579583,193.0,192.94,7.1579583]
[1761798367327,7.1579583,193.0,192.86,6.75152801]
[1761798367328,7.1579583,192.98,192.88,0.71]
[1761798367538,50.0,192.99,192.92,7.1579583]
[1761798367539,57.1579583,192.99,192.92,7.1579583]
[1761798367738,50.0,193.01,192.94,7.1579583]
[1761798367945,0.5,192.97,192.94,7.1579583]
[1761798368143,0.5,192.97,192.95,7.1579583]
[1761798368339,0.5,192.97,192.94,0.71]
[1761798368541,7.6579583,192.97,192.91,7.1579583]
[1761798368723,7.1579583,192.95,192.89,7.1579583]
[1761798368929,7.1579583,192.95,192.87,0.71]
[1761798369129,7.1579583,192.95,192.89,7.1579583]
[1761798369361,0.5,192.97,192.89,7.1579583]
[1761798369651,57.1579583,192.96,192.87,0.71]
[1761798369852,50.0,192.94,192.89,7.1579583]
[1761798370354,57.1579583,192.94,192.87,0.71]
[1761798370653,5.68224419,192.97,192.87,0.71]
[1761798370654,50.0,192.96,192.89,7.1579583]
[1761798370823,50.0,193.0,192.93,7.1579583]
[1761798371122,100.0,193.02,192.94,7.1579583]
[1761798371328,7.1579583,193.01,192.88,0.85216157]
[1761798371554,50.0,192.97,192.88,0.71]
[1761798371772,50.0,192.97,192.9,7.1579583]
[1761798371773,7.1579583,192.96,192.9,7.1579583]
[1761798372062,7.1579583,192.98,192.91,7.1579583]
[1761798372234,50.0,192.99,192.88,5.8945626]
[1761798372429,50.0,192.99,192.89,0.71]
[1761798372736,50.0,192.99,192.91,7.1579583]
[1761798372954,50.0,192.99,192.89,0.71]
[1761798372955,7.1579583,192.98,192.89,0.71]
[1761798373262,7.1579583,192.97,192.9,7.1579583]
[1761798373631,50.0,192.96,192.9,7.1579583]
[1761798373826,7.1579583,192.95,192.89,0.71]
[1761798374068,57.1579583,192.96,192.89,0.71]
[1761798374272,7.1579583,192.97,192.9,7.1579583]
[1761798374442,50.0,192.98,192.91,0.71]
[1761798374756,50.0,192.96,192.87,0.71]
[1761798374951,57.1579583,192.97,192.91,7.1579583]
[1761798375127,50.0,192.99,192.91,0.71]
[1761798375330,7.1579583,192.99,192.93,7.1579583]
[1761798375551,57.1579583,193.01,192.94,7.1579583]
[1761798375728,59.78882769,193.03,192.91,0.71]
[1761798375729,57.1579583,192.98,192.91,0.71]
[1761798375930,50.0,192.96,192.91,0.71]
[1761798376129,50.0,192.96,192.88,0.71]
[1761798376354,50.0,192.94,192.86,6.75152801]
[1761798376526,7.1579583,192.87,192.86,6.75152801]
[1761798376730,57.1579583,192.87,192.86,6.75152801]
[1761798376927,50.0,192.87,192.86,6.75152801]
[1761798377236,0.14216157,192.88,192.86,6.75152801]
[1761798377435,25.77683952,192.87,192.72,0.5188875]
[1761798377673,25.77683952,192.87,192.71,0.1]
[1761798377674,7.1579583,192.8,192.73,0.71]
[1761798377853,50.0,192.82,192.71,0.1]
[1761798377854,50.0,192.78,192.71,0.1]
[1761798378030,20.592,192.82,192.71,0.1]
[1761798378031,20.592,192.79,192.71,0.1]
[1761798378227,50.0,192.8,192.71,0.1]
[1761798378439,50.0,192.73,192.71,0.1]
[1761798378663,50.0,192.73,192.71,0.81]
[1761798378842,50.0,192.78,192.71,0.81]
[1761798379042,50.0,192.78,192.71,0.1]
[1761798379367,50.0,192.8,192.72,0.71]
[1761798379576,50.0,192.85,192.72,5.89869556]
[1761798379877,50.0,192.92,192.83,7.1579583]
[1761798380059,50.0,192.94,192.8,0.14216157]
[1761798380259,50.0,192.96,192.8,21.25283376]
[1761798380585,20.592,192.89,192.8,0.51867219]
[1761798380744,20.592,192.89,192.74,0.51883366]
[1761798380945,50.0,192.85,192.84,7.1579583]
[1761798381250,0.14216157,192.92,192.84,7.1579583]
[1761798381251,100.0,192.92,192.84,7.1579583]
[1761798381450,5.18928228,193.0,192.91,7.1579583]
[1761798381451,50.0,192.94,192.91,7.1579583]
[1761798381660,50.0,192.97,192.93,7.1579583]
[1761798381857,50.0,193.0,192.96,7.1579583]
[1761798382098,7.1579583,193.02,192.9,0.71]
[1761798382388,50.0,192.96,192.94,7.1579583]
[1761798382558,50.0,192.99,192.87,0.67]
[1761798382761,50.0,192.92,192.79,7.1579583]
[1761798382974,50.0,192.9,192.85,7.1579583]
[1761798383267,50.0,192.9,192.82,0.67]
[1761798383482,70.592,192.96,192.83,0.5185915]
[1761798383777,70.592,192.96,192.89,7.1579583]
[1761798383778,50.0,192.92,192.89,7.1579583]
[1761798383979,50.0,192.94,192.9,7.1579583]
[1761798384146,70.592,192.96,192.93,7.1579583]
[1761798384347,50.0,192.95,192.93,7.1579583]
[1761798384555,50.0,192.95,192.83,0.81216157]
[1761798384556,70.592,192.99,192.94,7.1579583]
[1761798384771,50.0,192.97,192.94,7.1579583]
[1761798385075,50.0,193.0,192.96,7.1579583]
[1761798385386,50.0,193.0,192.95,5.16508039]
[1761798385585,50.0,193.0,192.94,5.16508039]
[1761798385761,50.0,193.0,192.86,5.18502199]
[1761798385762,50.0,192.96,192.85,0.14216157]
[1761798385962,50.0,192.99,192.82,0.67]
[1761798385963,5.16508039,192.94,192.82,0.67]
[1761798386164,50.0,192.9,192.86,5.16508039]
[1761798386954,50.0,192.87,192.78,0.67]
[1761798387151,50.0,192.89,192.83,5.16508039]
[1761798387383,9.78882769,192.94,192.88,5.16508039]
[1761798387384,20.592,192.94,192.88,5.16508039]
[1761798387696,70.592,192.98,192.85,0.66069929]
[1761798387902,50.0,192.96,192.92,5.16508039]
[1761798388057,50.0,192.96,192.85,0.67]
[1761798388389,50.0,192.93,192.85,0.67]
[1761798388677,50.0,192.86,192.82,5.16508039]
[1761798388878,50.0,192.88,192.84,5.16508039]
[1761798389078,50.0,192.86,192.79,0.67]
[1761798389388,50.0,192.82,192.76,0.67]
[1761798389592,5.18537723,192.85,192.76,0.67]
[1761798389875,20.592,192.81,192.8,5.16508039]
[1761798390083,50.0,192.83,192.76,0.67]
[1761798390266,50.0,192.82,192.72,5.83508039]
[1761798390452,50.0,192.82,192.71,0.1]
[1761798390793,50.0,192.81,192.77,5.16508039]
[1761798390954,50.0,192.81,192.72,0.67]
[1761798390955,50.0,192.85,192.8,5.16508039]
[1761798391156,0.14216157,192.84,192.72,0.67]
[1761798391354,55.32794247,192.84,192.78,5.16508039]
[1761798391556,5.16508039,192.79,192.71,0.1]
[1761798391803,50.0,192.78,192.72,5.16508039]
[1761798392081,50.0,192.78,192.73,5.16508039]
[1761798392453,50.0,192.78,192.71,5.26508039]
[1761798392454,50.0,192.76,192.71,5.26508039]
[1761798393280,55.16508039,192.76,192.71,0.1]
[1761798393496,50.0,192.74,192.71,0.1]
[1761798393798,55.16508039,192.79,192.73,5.16508039]
[1761798393966,55.16508039,192.79,192.72,0.67]
[1761798393967,20.592,192.79,192.72,0.67]
[1761798394168,50.0,192.76,192.71,0.1]
[1761798394769,55.16508039,192.76,192.71,0.1]
[1761798394970,55.16508039,192.78,192.72,0.67]
[1761798395170,50.0,192.78,192.72,0.67]
[1761798395382,50.0,192.78,192.72,5.83508039]
[1761798395589,50.0,192.8,192.72,0.67]
[1761798395778,70.592,192.8,192.74,5.16508039]
[1761798395975,9.78882769,192.85,192.73,0.67]
[1761798395976,50.0,192.84,192.73,0.67]
[1761798396271,5.16508039,192.81,192.73,0.67]
[1761798396471,5.16508039,192.83,192.76,5.16508039]
[1761798396674,55.16508039,192.82,192.73,0.67]
[1761798396975,50.0,192.8,192.73,0.67]
[1761798397176,50.0,192.74,192.71,0.1]
[1761798397383,50.0,192.72,192.71,0.1]
[1761798397571,50.0,192.74,192.71,0.1]
[1761798397774,50.0,192.72,192.71,0.1]
[1761798397987,5.16508039,192.72,192.71,0.1]
[1761798398189,55.16508039,192.72,192.71,0.1]
[1761798399288,70.592,192.72,192.71,0.1]
[1761798399469,50.0,192.74,192.71,0.1]
[1761798399873,55.16508039,192.74,192.71,0.1]
[1761798400474,5.16508039,192.73,192.71,0.1]
[1761798400668,20.592,192.75,192.71,0.1]
[1761798400875,50.0,192.75,192.71,0.1]
[1761798401080,5.16508039,192.75,192.71,0.1]
[1761798401298,5.16508039,192.76,192.72,0.67]
[1761798401699,55.16508039,192.73,192.71,0.1]
[1761798401890,5.16508039,192.72,192.71,0.1]
[1761798402099,5.16508039,192.74,192.71,0.1]
[1761798402404,55.16508039,192.72,192.71,0.1]
[1761798402695,50.0,192.72,192.71,0.1]
[1761798402896,50.0,192.74,192.71,0.1]
[1761798403088,55.16508039,192.72,192.71,0.1]
[1761798403413,105.30724196,192.72,192.71,0.1]
[1761798403703,110.49611701,192.72,192.71,0.1]
[1761798403874,105.33103662,192.72,192.71,0.1]
[1761798404080,105.18887505,192.72,192.71,0.1]
[1761798404294,81.08811701,192.72,192.71,0.1]
[1761798404706,90.8769447,192.72,192.7,0.1]
[1761798405010,50.0,192.65,192.59,0.67]
[1761798405180,55.16508039,192.65,192.59,5.83508039]
[1761798405585,50.0,192.65,192.6,0.67]
[1761798406201,50.0,192.65,192.6,5.83508039]
[1761798406402,20.73416157,192.68,192.61,0.67]
[1761798406403,5.16508039,192.66,192.61,0.67]
[1761798406581,50.0,192.71,192.64,5.16508039]
[1761798406781,9.78882769,192.74,192.68,5.16508039]
[1761798406782,5.16508039,192.74,192.68,5.16508039]
[1761798406985,5.16508039,192.73,192.67,5.16508039]
[1761798407185,50.0,192.78,192.71,5.16508039]
[1761798407418,5.16508039,192.75,192.69,5.16508039]
[1761798407618,5.16508039,192.74,192.66,0.67]
[1761798407791,50.0,192.74,192.66,5.83508039]
[1761798407993,5.16508039,192.72,192.66,0.67]
[1761798408193,5.16508039,192.73,192.67,5.83508039]
[1761798408414,5.16508039,192.74,192.67,5.83508039]
[1761798408621,5.16508039,192.75,192.68,0.67]
[1761798408830,5.16508039,192.78,192.72,5.16508039]
[1761798409129,5.16508039,192.81,192.69,0.66112986]
[1761798409316,1.99999999,192.95,192.78,5.16508039]
[1761798409317,50.0,192.86,192.78,5.16508039]
[1761798409506,5.16508039,192.84,192.78,5.16508039]
[1761798409825,55.18297017,192.94,192.83,5.16508039]
[1761798410040,55.18297017,192.94,192.84,0.67]
[1761798410041,55.16508039,192.92,192.84,0.67]
[1761798410341,5.16508039,192.9,192.84,5.83508039]
[1761798410517,5.16508039,192.9,192.84,5.16508039]
[1761798410708,55.16508039,192.92,192.86,5.16508039]
[1761798410904,55.18216057,192.97,192.85,0.67]
[1761798411098,5.16508039,192.92,192.86,5.16508039]
[1761798411306,5.16508039,192.88,192.81,0.67]
[1761798411509,50.0,192.94,192.86,5.16508039]
[1761798411709,55.16508039,192.94,192.88,5.16508039]
[1761798411937,5.18256086,192.96,192.88,5.16508039]
[1761798412225,5.16508039,192.92,192.86,5.16508039]